Workbook

Sheet سابق (hidden)
A1: شركة/ دياجرام للمقاولات والتجارة والتوريدات | H1: المشروع/ مرابط الخيول
A2: إسم المقاول/هانى على جابر | C2: وصف العمل/ توريد مياة للموقع | G2: مستخلص جاري | H2: 9 | I2: عن الفترة من 2/1 الي 2/15/ 2023
A3: بيــــــانات التعــــــــــــاقد | D3: كـمـيــة الاعمـــــــــــــــال | G3: الفئـــــة | H3: اجمــــــالي قيمة البند | I3: نسبة الصرف | J3: اجمــــــالي قيمة الاعمال | K3: ملاحظــــــات
A4: رقم البند | B4: بنود الاعمال | C4: الوحدة | D4: الكمية السابقة | E4: الكمية الحالية | F4: اجمالي الكميات | G4: جنيه | H4: جنيه
A5: 1 | B5: توريد مياة للموقع | C5: م.3 | D5: 795 | E5: 120 | F5: =D5+E5 -> 915 | G5: 55 | H5: =E5*G5 -> 6600 | J5: =F5*G5 -> 50325 | K5: جارى
A6: اجمالي قيمة الاعمال | J6: =SUM(J5:J5) -> 50325
A8: محاسب الموقع / | C8: مدير المشروع / | G8: مدير القطاع/ | J8: مدير المشروعات/

Sheet data
A1: م | B1: التاريخ | C1: جارى | D1: البند | E1: كمية حالية | F1: نسبة الانجاز | G1: كمية سابقة | H1: الاجمالى
A2: =ROW()-2 -> 0 | B2: 2023-03-15 | C2: 11 | D2: توريد مياة للموقع | E2: 1175 | F2: 1 | G2: =SUMIF($D$1:D1,D2,$E$1:E1) -> 0 | H2: =SUMIF($D$2:D2,D2,$E$2:E2) -> 1175
A3: =ROW()-2 -> 1 | B3: 2023-03-31 | C3: 12 | D3: توريد مياة للموقع | E3: 80 | F3: 1 | G3: =SUMIF($D$1:D2,D3,$E$1:E2) -> 1175 | H3: =SUMIF($D$2:D3,D3,$E$2:E3) -> 1255
A4: 2 | B4: 2023-04-30 | C4: 13 | D4: توريد مياة للموقع | E4: 80 | F4: 1 | G4: =SUMIF($D$1:D3,D4,$E$1:E3) -> 1255 | H4: =SUMIF($D$2:D4,D4,$E$2:E4) -> 1335
A5: 3 | B5: 2023-05-15 | C5: 14 | D5: توريد مياة للموقع | E5: =9*20 -> 180 | F5: 1 | G5: =SUMIF($D$1:D4,D5,$E$1:E4) -> 1335 | H5: =SUMIF($D$2:D5,D5,$E$2:E5) -> 1515
A6: 4 | B6: 2023-05-31 | C6: 15 | D6: توريد مياة للموقع | E6: 200 | F6: 1 | G6: =SUMIF($D$1:D5,D6,$E$1:E5) -> 1515 | H6: =SUMIF($D$2:D6,D6,$E$2:E6) -> 1715
A7: 5 | B7: 2023-05-31 | C7: 15 | D7: توريد سن مقاس موحد | E7: 12 | F7: 1 | G7: =SUMIF($D$1:D6,D7,$E$1:E6) -> 0 | H7: =SUMIF($D$2:D7,D7,$E$2:E7) -> 12
A8: 6 | B8: 2023-06-15 | C8: 16 | D8: توريد مياة للموقع | E8: =11*20 -> 220 | F8: 1 | G8: =SUMIF($D$1:D7,D8,$E$1:E7) -> 1715 | H8: =SUMIF($D$2:D8,D8,$E$2:E8) -> 1935
A9: 7 | B9: 2023-06-15 | C9: 16 | D9: توريد سن مقاس موحد | E9: 12 | F9: 1 | G9: =SUMIF($D$1:D8,D9,$E$1:E8) -> 12 | H9: =SUMIF($D$2:D9,D9,$E$2:E9) -> 24
A10: 8 | G10: =SUMIF($D$1:D9,D10,$E$1:E9) -> 0 | H10: =SUMIF($D$2:D10,D10,$E$2:E10) -> 0
A11: 9 | G11: =SUMIF($D$1:D10,D11,$E$1:E10) -> 0 | H11: =SUMIF($D$2:D11,D11,$E$2:E11) -> 0
A12: 10 | G12: =SUMIF($D$1:D11,D12,$E$1:E11) -> 0 | H12: =SUMIF($D$2:D12,D12,$E$2:E12) -> 0
A13: 11 | G13: =SUMIF($D$1:D12,D13,$E$1:E12) -> 0 | H13: =SUMIF($D$2:D13,D13,$E$2:E13) -> 0
A14: 12 | G14: =SUMIF($D$1:D13,D14,$E$1:E13) -> 0 | H14: =SUMIF($D$2:D14,D14,$E$2:E14) -> 0
A15: 13 | G15: =SUMIF($D$1:D14,D15,$E$1:E14) -> 0 | H15: =SUMIF($D$2:D15,D15,$E$2:E15) -> 0
A16: 14 | G16: =SUMIF($D$1:D15,D16,$E$1:E15) -> 0 | H16: =SUMIF($D$2:D16,D16,$E$2:E16) -> 0
A17: 15 | G17: =SUMIF($D$1:D16,D17,$E$1:E16) -> 0 | H17: =SUMIF($D$2:D17,D17,$E$2:E17) -> 0
A18: 16 | G18: =SUMIF($D$1:D17,D18,$E$1:E17) -> 0 | H18: =SUMIF($D$2:D18,D18,$E$2:E18) -> 0
A19: 17 | G19: =SUMIF($D$1:D18,D19,$E$1:E18) -> 0 | H19: =SUMIF($D$2:D19,D19,$E$2:E19) -> 0
A20: 18 | G20: =SUMIF($D$1:D19,D20,$E$1:E19) -> 0 | H20: =SUMIF($D$2:D20,D20,$E$2:E20) -> 0
A21: 19 | G21: =SUMIF($D$1:D20,D21,$E$1:E20) -> 0 | H21: =SUMIF($D$2:D21,D21,$E$2:E21) -> 0
A22: 20 | G22: =SUMIF($D$1:D21,D22,$E$1:E21) -> 0 | H22: =SUMIF($D$2:D22,D22,$E$2:E22) -> 0
A23: 21 | G23: =SUMIF($D$1:D22,D23,$E$1:E22) -> 0 | H23: =SUMIF($D$2:D23,D23,$E$2:E23) -> 0
A24: 22 | G24: =SUMIF($D$1:D23,D24,$E$1:E23) -> 0 | H24: =SUMIF($D$2:D24,D24,$E$2:E24) -> 0
A25: 23 | G25: =SUMIF($D$1:D24,D25,$E$1:E24) -> 0 | H25: =SUMIF($D$2:D25,D25,$E$2:E25) -> 0
A26: 24 | G26: =SUMIF($D$1:D25,D26,$E$1:E25) -> 0 | H26: =SUMIF($D$2:D26,D26,$E$2:E26) -> 0
A27: 25 | G27: =SUMIF($D$1:D26,D27,$E$1:E26) -> 0 | H27: =SUMIF($D$2:D27,D27,$E$2:E27) -> 0
A28: 26 | G28: =SUMIF($D$1:D27,D28,$E$1:E27) -> 0 | H28: =SUMIF($D$2:D28,D28,$E$2:E28) -> 0
A29: 27 | G29: =SUMIF($D$1:D28,D29,$E$1:E28) -> 0 | H29: =SUMIF($D$2:D29,D29,$E$2:E29) -> 0
A30: 28 | G30: =SUMIF($D$1:D29,D30,$E$1:E29) -> 0 | H30: =SUMIF($D$2:D30,D30,$E$2:E30) -> 0
A31: 29 | G31: =SUMIF($D$1:D30,D31,$E$1:E30) -> 0 | H31: =SUMIF($D$2:D31,D31,$E$2:E31) -> 0
A32: 30 | G32: =SUMIF($D$1:D31,D32,$E$1:E31) -> 0 | H32: =SUMIF($D$2:D32,D32,$E$2:E32) -> 0
A33: 31 | G33: =SUMIF($D$1:D32,D33,$E$1:E32) -> 0 | H33: =SUMIF($D$2:D33,D33,$E$2:E33) -> 0
A34: 32 | G34: =SUMIF($D$1:D33,D34,$E$1:E33) -> 0 | H34: =SUMIF($D$2:D34,D34,$E$2:E34) -> 0
A35: 33 | G35: =SUMIF($D$1:D34,D35,$E$1:E34) -> 0 | H35: =SUMIF($D$2:D35,D35,$E$2:E35) -> 0
A36: 34 | G36: =SUMIF($D$1:D35,D36,$E$1:E35) -> 0 | H36: =SUMIF($D$2:D36,D36,$E$2:E36) -> 0
A37: 35 | G37: =SUMIF($D$1:D36,D37,$E$1:E36) -> 0 | H37: =SUMIF($D$2:D37,D37,$E$2:E37) -> 0
A38: 36 | G38: =SUMIF($D$1:D37,D38,$E$1:E37) -> 0 | H38: =SUMIF($D$2:D38,D38,$E$2:E38) -> 0
A39: 37 | G39: =SUMIF($D$1:D38,D39,$E$1:E38) -> 0 | H39: =SUMIF($D$2:D39,D39,$E$2:E39) -> 0
A40: 38 | G40: =SUMIF($D$1:D39,D40,$E$1:E39) -> 0 | H40: =SUMIF($D$2:D40,D40,$E$2:E40) -> 0
A41: 39 | G41: =SUMIF($D$1:D40,D41,$E$1:E40) -> 0 | H41: =SUMIF($D$2:D41,D41,$E$2:E41) -> 0
A42: 40 | G42: =SUMIF($D$1:D41,D42,$E$1:E41) -> 0 | H42: =SUMIF($D$2:D42,D42,$E$2:E42) -> 0
A43: 41 | G43: =SUMIF($D$1:D42,D43,$E$1:E42) -> 0 | H43: =SUMIF($D$2:D43,D43,$E$2:E43) -> 0
A44: 42 | G44: =SUMIF($D$1:D43,D44,$E$1:E43) -> 0 | H44: =SUMIF($D$2:D44,D44,$E$2:E44) -> 0
A45: 43 | G45: =SUMIF($D$1:D44,D45,$E$1:E44) -> 0 | H45: =SUMIF($D$2:D45,D45,$E$2:E45) -> 0
A46: 44 | G46: =SUMIF($D$1:D45,D46,$E$1:E45) -> 0 | H46: =SUMIF($D$2:D46,D46,$E$2:E46) -> 0
A47: 45 | G47: =SUMIF($D$1:D46,D47,$E$1:E46) -> 0 | H47: =SUMIF($D$2:D47,D47,$E$2:E47) -> 0
A48: 46 | G48: =SUMIF($D$1:D47,D48,$E$1:E47) -> 0 | H48: =SUMIF($D$2:D48,D48,$E$2:E48) -> 0
A49: 47 | G49: =SUMIF($D$1:D48,D49,$E$1:E48) -> 0 | H49: =SUMIF($D$2:D49,D49,$E$2:E49) -> 0
A50: 48 | G50: =SUMIF($D$1:D49,D50,$E$1:E49) -> 0 | H50: =SUMIF($D$2:D50,D50,$E$2:E50) -> 0
A51: 49 | G51: =SUMIF($D$1:D50,D51,$E$1:E50) -> 0 | H51: =SUMIF($D$2:D51,D51,$E$2:E51) -> 0
A52: 50 | G52: =SUMIF($D$1:D51,D52,$E$1:E51) -> 0 | H52: =SUMIF($D$2:D52,D52,$E$2:E52) -> 0
A53: 51 | G53: =SUMIF($D$1:D52,D53,$E$1:E52) -> 0 | H53: =SUMIF($D$2:D53,D53,$E$2:E53) -> 0
A54: 52 | G54: =SUMIF($D$1:D53,D54,$E$1:E53) -> 0 | H54: =SUMIF($D$2:D54,D54,$E$2:E54) -> 0
A55: 53 | G55: =SUMIF($D$1:D54,D55,$E$1:E54) -> 0 | H55: =SUMIF($D$2:D55,D55,$E$2:E55) -> 0
A56: 54 | G56: =SUMIF($D$1:D55,D56,$E$1:E55) -> 0 | H56: =SUMIF($D$2:D56,D56,$E$2:E56) -> 0
A57: 55 | G57: =SUMIF($D$1:D56,D57,$E$1:E56) -> 0 | H57: =SUMIF($D$2:D57,D57,$E$2:E57) -> 0
A58: 56 | G58: =SUMIF($D$1:D57,D58,$E$1:E57) -> 0 | H58: =SUMIF($D$2:D58,D58,$E$2:E58) -> 0
A59: 57 | G59: =SUMIF($D$1:D58,D59,$E$1:E58) -> 0 | H59: =SUMIF($D$2:D59,D59,$E$2:E59) -> 0
A60: 58 | G60: =SUMIF($D$1:D59,D60,$E$1:E59) -> 0 | H60: =SUMIF($D$2:D60,D60,$E$2:E60) -> 0
A61: 59 | G61: =SUMIF($D$1:D60,D61,$E$1:E60) -> 0 | H61: =SUMIF($D$2:D61,D61,$E$2:E61) -> 0
A62: 60 | G62: =SUMIF($D$1:D61,D62,$E$1:E61) -> 0 | H62: =SUMIF($D$2:D62,D62,$E$2:E62) -> 0
A63: 61 | G63: =SUMIF($D$1:D62,D63,$E$1:E62) -> 0 | H63: =SUMIF($D$2:D63,D63,$E$2:E63) -> 0
A64: 62 | G64: =SUMIF($D$1:D63,D64,$E$1:E63) -> 0 | H64: =SUMIF($D$2:D64,D64,$E$2:E64) -> 0
A65: 63 | G65: =SUMIF($D$1:D64,D65,$E$1:E64) -> 0 | H65: =SUMIF($D$2:D65,D65,$E$2:E65) -> 0
A66: =ROW()-2 -> 64 | G66: =SUMIF($D$1:D65,D66,$E$1:E65) -> 0 | H66: =SUMIF($D$2:D66,D66,$E$2:E66) -> 0
A67: 65 | G67: =SUMIF($D$1:D66,D67,$E$1:E66) -> 0 | H67: =SUMIF($D$2:D67,D67,$E$2:E67) -> 0
A68: 66 | G68: =SUMIF($D$1:D67,D68,$E$1:E67) -> 0 | H68: =SUMIF($D$2:D68,D68,$E$2:E68) -> 0
A69: 67 | G69: =SUMIF($D$1:D68,D69,$E$1:E68) -> 0 | H69: =SUMIF($D$2:D69,D69,$E$2:E69) -> 0
A70: 68 | G70: =SUMIF($D$1:D69,D70,$E$1:E69) -> 0 | H70: =SUMIF($D$2:D70,D70,$E$2:E70) -> 0
A71: 69 | G71: =SUMIF($D$1:D70,D71,$E$1:E70) -> 0 | H71: =SUMIF($D$2:D71,D71,$E$2:E71) -> 0
A72: 70 | G72: =SUMIF($D$1:D71,D72,$E$1:E71) -> 0 | H72: =SUMIF($D$2:D72,D72,$E$2:E72) -> 0
A73: 71 | G73: =SUMIF($D$1:D72,D73,$E$1:E72) -> 0 | H73: =SUMIF($D$2:D73,D73,$E$2:E73) -> 0
A74: 72 | G74: =SUMIF($D$1:D73,D74,$E$1:E73) -> 0 | H74: =SUMIF($D$2:D74,D74,$E$2:E74) -> 0
A75: 73 | G75: =SUMIF($D$1:D74,D75,$E$1:E74) -> 0 | H75: =SUMIF($D$2:D75,D75,$E$2:E75) -> 0
A76: 74 | G76: =SUMIF($D$1:D75,D76,$E$1:E75) -> 0 | H76: =SUMIF($D$2:D76,D76,$E$2:E76) -> 0
A77: 75 | G77: =SUMIF($D$1:D76,D77,$E$1:E76) -> 0 | H77: =SUMIF($D$2:D77,D77,$E$2:E77) -> 0
A78: 76 | G78: =SUMIF($D$1:D77,D78,$E$1:E77) -> 0 | H78: =SUMIF($D$2:D78,D78,$E$2:E78) -> 0
A79: 77 | G79: =SUMIF($D$1:D78,D79,$E$1:E78) -> 0 | H79: =SUMIF($D$2:D79,D79,$E$2:E79) -> 0
A80: 78 | G80: =SUMIF($D$1:D79,D80,$E$1:E79) -> 0 | H80: =SUMIF($D$2:D80,D80,$E$2:E80) -> 0
A81: 79 | G81: =SUMIF($D$1:D80,D81,$E$1:E80) -> 0 | H81: =SUMIF($D$2:D81,D81,$E$2:E81) -> 0
A82: 80 | G82: =SUMIF($D$1:D81,D82,$E$1:E81) -> 0 | H82: =SUMIF($D$2:D82,D82,$E$2:E82) -> 0
A83: 81 | G83: =SUMIF($D$1:D82,D83,$E$1:E82) -> 0 | H83: =SUMIF($D$2:D83,D83,$E$2:E83) -> 0
A84: 82 | G84: =SUMIF($D$1:D83,D84,$E$1:E83) -> 0 | H84: =SUMIF($D$2:D84,D84,$E$2:E84) -> 0
A85: 83 | G85: =SUMIF($D$1:D84,D85,$E$1:E84) -> 0 | H85: =SUMIF($D$2:D85,D85,$E$2:E85) -> 0
A86: 84 | G86: =SUMIF($D$1:D85,D86,$E$1:E85) -> 0 | H86: =SUMIF($D$2:D86,D86,$E$2:E86) -> 0
A87: 85 | G87: =SUMIF($D$1:D86,D87,$E$1:E86) -> 0 | H87: =SUMIF($D$2:D87,D87,$E$2:E87) -> 0
A88: 86 | G88: =SUMIF($D$1:D87,D88,$E$1:E87) -> 0 | H88: =SUMIF($D$2:D88,D88,$E$2:E88) -> 0
A89: 87 | G89: =SUMIF($D$1:D88,D89,$E$1:E88) -> 0 | H89: =SUMIF($D$2:D89,D89,$E$2:E89) -> 0
A90: 88 | G90: =SUMIF($D$1:D89,D90,$E$1:E89) -> 0 | H90: =SUMIF($D$2:D90,D90,$E$2:E90) -> 0
A91: 89 | G91: =SUMIF($D$1:D90,D91,$E$1:E90) -> 0 | H91: =SUMIF($D$2:D91,D91,$E$2:E91) -> 0
A92: 90 | G92: =SUMIF($D$1:D91,D92,$E$1:E91) -> 0 | H92: =SUMIF($D$2:D92,D92,$E$2:E92) -> 0
A93: 91 | G93: =SUMIF($D$1:D92,D93,$E$1:E92) -> 0 | H93: =SUMIF($D$2:D93,D93,$E$2:E93) -> 0
A94: 92 | G94: =SUMIF($D$1:D93,D94,$E$1:E93) -> 0 | H94: =SUMIF($D$2:D94,D94,$E$2:E94) -> 0
A95: 93 | G95: =SUMIF($D$1:D94,D95,$E$1:E94) -> 0 | H95: =SUMIF($D$2:D95,D95,$E$2:E95) -> 0
A96: 94 | G96: =SUMIF($D$1:D95,D96,$E$1:E95) -> 0 | H96: =SUMIF($D$2:D96,D96,$E$2:E96) -> 0
A97: 95 | G97: =SUMIF($D$1:D96,D97,$E$1:E96) -> 0 | H97: =SUMIF($D$2:D97,D97,$E$2:E97) -> 0
A98: 96 | G98: =SUMIF($D$1:D97,D98,$E$1:E97) -> 0 | H98: =SUMIF($D$2:D98,D98,$E$2:E98) -> 0
A99: 97 | G99: =SUMIF($D$1:D98,D99,$E$1:E98) -> 0 | H99: =SUMIF($D$2:D99,D99,$E$2:E99) -> 0
A100: 98 | G100: =SUMIF($D$1:D99,D100,$E$1:E99) -> 0 | H100: =SUMIF($D$2:D100,D100,$E$2:E100) -> 0
A101: 99 | G101: =SUMIF($D$1:D100,D101,$E$1:E100) -> 0 | H101: =SUMIF($D$2:D101,D101,$E$2:E101) -> 0
A102: 100 | G102: =SUMIF($D$1:D101,D102,$E$1:E101) -> 0 | H102: =SUMIF($D$2:D102,D102,$E$2:E102) -> 0
A103: 101 | G103: =SUMIF($D$1:D102,D103,$E$1:E102) -> 0 | H103: =SUMIF($D$2:D103,D103,$E$2:E103) -> 0
A104: 102 | G104: =SUMIF($D$1:D103,D104,$E$1:E103) -> 0 | H104: =SUMIF($D$2:D104,D104,$E$2:E104) -> 0
A105: 103 | G105: =SUMIF($D$1:D104,D105,$E$1:E104) -> 0 | H105: =SUMIF($D$2:D105,D105,$E$2:E105) -> 0
A106: 104 | G106: =SUMIF($D$1:D105,D106,$E$1:E105) -> 0 | H106: =SUMIF($D$2:D106,D106,$E$2:E106) -> 0
A107: 105 | G107: =SUMIF($D$1:D106,D107,$E$1:E106) -> 0 | H107: =SUMIF($D$2:D107,D107,$E$2:E107) -> 0
A108: 106 | G108: =SUMIF($D$1:D107,D108,$E$1:E107) -> 0 | H108: =SUMIF($D$2:D108,D108,$E$2:E108) -> 0
A109: 107 | G109: =SUMIF($D$1:D108,D109,$E$1:E108) -> 0 | H109: =SUMIF($D$2:D109,D109,$E$2:E109) -> 0
A110: 108 | G110: =SUMIF($D$1:D109,D110,$E$1:E109) -> 0 | H110: =SUMIF($D$2:D110,D110,$E$2:E110) -> 0
A111: 109 | G111: =SUMIF($D$1:D110,D111,$E$1:E110) -> 0 | H111: =SUMIF($D$2:D111,D111,$E$2:E111) -> 0
A112: 110 | G112: =SUMIF($D$1:D111,D112,$E$1:E111) -> 0 | H112: =SUMIF($D$2:D112,D112,$E$2:E112) -> 0
A113: 111 | G113: =SUMIF($D$1:D112,D113,$E$1:E112) -> 0 | H113: =SUMIF($D$2:D113,D113,$E$2:E113) -> 0
A114: 112 | G114: =SUMIF($D$1:D113,D114,$E$1:E113) -> 0 | H114: =SUMIF($D$2:D114,D114,$E$2:E114) -> 0
A115: 113 | G115: =SUMIF($D$1:D114,D115,$E$1:E114) -> 0 | H115: =SUMIF($D$2:D115,D115,$E$2:E115) -> 0
A116: 114 | G116: =SUMIF($D$1:D115,D116,$E$1:E115) -> 0 | H116: =SUMIF($D$2:D116,D116,$E$2:E116) -> 0
A117: 115 | G117: =SUMIF($D$1:D116,D117,$E$1:E116) -> 0 | H117: =SUMIF($D$2:D117,D117,$E$2:E117) -> 0
A118: 116 | G118: =SUMIF($D$1:D117,D118,$E$1:E117) -> 0 | H118: =SUMIF($D$2:D118,D118,$E$2:E118) -> 0
A119: 117 | G119: =SUMIF($D$1:D118,D119,$E$1:E118) -> 0 | H119: =SUMIF($D$2:D119,D119,$E$2:E119) -> 0
A120: 118 | G120: =SUMIF($D$1:D119,D120,$E$1:E119) -> 0 | H120: =SUMIF($D$2:D120,D120,$E$2:E120) -> 0
A121: 119 | G121: =SUMIF($D$1:D120,D121,$E$1:E120) -> 0 | H121: =SUMIF($D$2:D121,D121,$E$2:E121) -> 0
A122: 120 | G122: =SUMIF($D$1:D121,D122,$E$1:E121) -> 0 | H122: =SUMIF($D$2:D122,D122,$E$2:E122) -> 0
A123: 121 | G123: =SUMIF($D$1:D122,D123,$E$1:E122) -> 0 | H123: =SUMIF($D$2:D123,D123,$E$2:E123) -> 0
A124: 122 | G124: =SUMIF($D$1:D123,D124,$E$1:E123) -> 0 | H124: =SUMIF($D$2:D124,D124,$E$2:E124) -> 0
A125: 123 | G125: =SUMIF($D$1:D124,D125,$E$1:E124) -> 0 | H125: =SUMIF($D$2:D125,D125,$E$2:E125) -> 0
A126: 124 | G126: =SUMIF($D$1:D125,D126,$E$1:E125) -> 0 | H126: =SUMIF($D$2:D126,D126,$E$2:E126) -> 0
A127: 125 | G127: =SUMIF($D$1:D126,D127,$E$1:E126) -> 0 | H127: =SUMIF($D$2:D127,D127,$E$2:E127) -> 0
A128: 126 | G128: =SUMIF($D$1:D127,D128,$E$1:E127) -> 0 | H128: =SUMIF($D$2:D128,D128,$E$2:E128) -> 0
A129: 127 | G129: =SUMIF($D$1:D128,D129,$E$1:E128) -> 0 | H129: =SUMIF($D$2:D129,D129,$E$2:E129) -> 0
A130: =ROW()-2 -> 128 | G130: =SUMIF($D$1:D129,D130,$E$1:E129) -> 0 | H130: =SUMIF($D$2:D130,D130,$E$2:E130) -> 0
A131: 129 | G131: =SUMIF($D$1:D130,D131,$E$1:E130) -> 0 | H131: =SUMIF($D$2:D131,D131,$E$2:E131) -> 0
A132: 130 | G132: =SUMIF($D$1:D131,D132,$E$1:E131) -> 0 | H132: =SUMIF($D$2:D132,D132,$E$2:E132) -> 0
A133: 131 | G133: =SUMIF($D$1:D132,D133,$E$1:E132) -> 0 | H133: =SUMIF($D$2:D133,D133,$E$2:E133) -> 0
A134: 132 | G134: =SUMIF($D$1:D133,D134,$E$1:E133) -> 0 | H134: =SUMIF($D$2:D134,D134,$E$2:E134) -> 0
A135: 133 | G135: =SUMIF($D$1:D134,D135,$E$1:E134) -> 0 | H135: =SUMIF($D$2:D135,D135,$E$2:E135) -> 0
A136: 134 | G136: =SUMIF($D$1:D135,D136,$E$1:E135) -> 0 | H136: =SUMIF($D$2:D136,D136,$E$2:E136) -> 0
A137: 135 | G137: =SUMIF($D$1:D136,D137,$E$1:E136) -> 0 | H137: =SUMIF($D$2:D137,D137,$E$2:E137) -> 0
A138: 136 | G138: =SUMIF($D$1:D137,D138,$E$1:E137) -> 0 | H138: =SUMIF($D$2:D138,D138,$E$2:E138) -> 0
A139: 137 | G139: =SUMIF($D$1:D138,D139,$E$1:E138) -> 0 | H139: =SUMIF($D$2:D139,D139,$E$2:E139) -> 0
A140: 138 | G140: =SUMIF($D$1:D139,D140,$E$1:E139) -> 0 | H140: =SUMIF($D$2:D140,D140,$E$2:E140) -> 0
A141: 139 | G141: =SUMIF($D$1:D140,D141,$E$1:E140) -> 0 | H141: =SUMIF($D$2:D141,D141,$E$2:E141) -> 0
A142: 140 | G142: =SUMIF($D$1:D141,D142,$E$1:E141) -> 0 | H142: =SUMIF($D$2:D142,D142,$E$2:E142) -> 0
A143: 141 | G143: =SUMIF($D$1:D142,D143,$E$1:E142) -> 0 | H143: =SUMIF($D$2:D143,D143,$E$2:E143) -> 0
A144: 142 | G144: =SUMIF($D$1:D143,D144,$E$1:E143) -> 0 | H144: =SUMIF($D$2:D144,D144,$E$2:E144) -> 0
A145: 143 | G145: =SUMIF($D$1:D144,D145,$E$1:E144) -> 0 | H145: =SUMIF($D$2:D145,D145,$E$2:E145) -> 0
A146: 144 | G146: =SUMIF($D$1:D145,D146,$E$1:E145) -> 0 | H146: =SUMIF($D$2:D146,D146,$E$2:E146) -> 0
A147: 145 | G147: =SUMIF($D$1:D146,D147,$E$1:E146) -> 0 | H147: =SUMIF($D$2:D147,D147,$E$2:E147) -> 0
A148: 146 | G148: =SUMIF($D$1:D147,D148,$E$1:E147) -> 0 | H148: =SUMIF($D$2:D148,D148,$E$2:E148) -> 0
A149: 147 | G149: =SUMIF($D$1:D148,D149,$E$1:E148) -> 0 | H149: =SUMIF($D$2:D149,D149,$E$2:E149) -> 0
A150: 148 | G150: =SUMIF($D$1:D149,D150,$E$1:E149) -> 0 | H150: =SUMIF($D$2:D150,D150,$E$2:E150) -> 0
A151: 149 | G151: =SUMIF($D$1:D150,D151,$E$1:E150) -> 0 | H151: =SUMIF($D$2:D151,D151,$E$2:E151) -> 0
A152: 150 | G152: =SUMIF($D$1:D151,D152,$E$1:E151) -> 0 | H152: =SUMIF($D$2:D152,D152,$E$2:E152) -> 0
A153: 151 | G153: =SUMIF($D$1:D152,D153,$E$1:E152) -> 0 | H153: =SUMIF($D$2:D153,D153,$E$2:E153) -> 0
A154: 152 | G154: =SUMIF($D$1:D153,D154,$E$1:E153) -> 0 | H154: =SUMIF($D$2:D154,D154,$E$2:E154) -> 0
A155: 153 | G155: =SUMIF($D$1:D154,D155,$E$1:E154) -> 0 | H155: =SUMIF($D$2:D155,D155,$E$2:E155) -> 0
A156: 154 | G156: =SUMIF($D$1:D155,D156,$E$1:E155) -> 0 | H156: =SUMIF($D$2:D156,D156,$E$2:E156) -> 0
A157: 155 | G157: =SUMIF($D$1:D156,D157,$E$1:E156) -> 0 | H157: =SUMIF($D$2:D157,D157,$E$2:E157) -> 0
A158: 156 | G158: =SUMIF($D$1:D157,D158,$E$1:E157) -> 0 | H158: =SUMIF($D$2:D158,D158,$E$2:E158) -> 0
A159: 157 | G159: =SUMIF($D$1:D158,D159,$E$1:E158) -> 0 | H159: =SUMIF($D$2:D159,D159,$E$2:E159) -> 0
A160: 158 | G160: =SUMIF($D$1:D159,D160,$E$1:E159) -> 0 | H160: =SUMIF($D$2:D160,D160,$E$2:E160) -> 0
A161: 159 | G161: =SUMIF($D$1:D160,D161,$E$1:E160) -> 0 | H161: =SUMIF($D$2:D161,D161,$E$2:E161) -> 0
A162: 160 | G162: =SUMIF($D$1:D161,D162,$E$1:E161) -> 0 | H162: =SUMIF($D$2:D162,D162,$E$2:E162) -> 0
A163: 161 | G163: =SUMIF($D$1:D162,D163,$E$1:E162) -> 0 | H163: =SUMIF($D$2:D163,D163,$E$2:E163) -> 0
A164: 162 | G164: =SUMIF($D$1:D163,D164,$E$1:E163) -> 0 | H164: =SUMIF($D$2:D164,D164,$E$2:E164) -> 0
A165: 163 | G165: =SUMIF($D$1:D164,D165,$E$1:E164) -> 0 | H165: =SUMIF($D$2:D165,D165,$E$2:E165) -> 0
A166: 164 | G166: =SUMIF($D$1:D165,D166,$E$1:E165) -> 0 | H166: =SUMIF($D$2:D166,D166,$E$2:E166) -> 0
A167: 165 | G167: =SUMIF($D$1:D166,D167,$E$1:E166) -> 0 | H167: =SUMIF($D$2:D167,D167,$E$2:E167) -> 0
A168: 166 | G168: =SUMIF($D$1:D167,D168,$E$1:E167) -> 0 | H168: =SUMIF($D$2:D168,D168,$E$2:E168) -> 0
A169: 167 | G169: =SUMIF($D$1:D168,D169,$E$1:E168) -> 0 | H169: =SUMIF($D$2:D169,D169,$E$2:E169) -> 0
A170: 168 | G170: =SUMIF($D$1:D169,D170,$E$1:E169) -> 0 | H170: =SUMIF($D$2:D170,D170,$E$2:E170) -> 0
A171: 169 | G171: =SUMIF($D$1:D170,D171,$E$1:E170) -> 0 | H171: =SUMIF($D$2:D171,D171,$E$2:E171) -> 0
A172: 170 | G172: =SUMIF($D$1:D171,D172,$E$1:E171) -> 0 | H172: =SUMIF($D$2:D172,D172,$E$2:E172) -> 0
A173: 171 | G173: =SUMIF($D$1:D172,D173,$E$1:E172) -> 0 | H173: =SUMIF($D$2:D173,D173,$E$2:E173) -> 0
A174: 172 | G174: =SUMIF($D$1:D173,D174,$E$1:E173) -> 0 | H174: =SUMIF($D$2:D174,D174,$E$2:E174) -> 0
A175: 173 | G175: =SUMIF($D$1:D174,D175,$E$1:E174) -> 0 | H175: =SUMIF($D$2:D175,D175,$E$2:E175) -> 0
A176: 174 | G176: =SUMIF($D$1:D175,D176,$E$1:E175) -> 0 | H176: =SUMIF($D$2:D176,D176,$E$2:E176) -> 0
A177: 175 | G177: =SUMIF($D$1:D176,D177,$E$1:E176) -> 0 | H177: =SUMIF($D$2:D177,D177,$E$2:E177) -> 0
A178: 176 | G178: =SUMIF($D$1:D177,D178,$E$1:E177) -> 0 | H178: =SUMIF($D$2:D178,D178,$E$2:E178) -> 0
A179: 177 | G179: =SUMIF($D$1:D178,D179,$E$1:E178) -> 0 | H179: =SUMIF($D$2:D179,D179,$E$2:E179) -> 0
A180: 178 | G180: =SUMIF($D$1:D179,D180,$E$1:E179) -> 0 | H180: =SUMIF($D$2:D180,D180,$E$2:E180) -> 0
A181: 179 | G181: =SUMIF($D$1:D180,D181,$E$1:E180) -> 0 | H181: =SUMIF($D$2:D181,D181,$E$2:E181) -> 0
A182: 180 | G182: =SUMIF($D$1:D181,D182,$E$1:E181) -> 0 | H182: =SUMIF($D$2:D182,D182,$E$2:E182) -> 0
A183: 181 | G183: =SUMIF($D$1:D182,D183,$E$1:E182) -> 0 | H183: =SUMIF($D$2:D183,D183,$E$2:E183) -> 0
A184: 182 | G184: =SUMIF($D$1:D183,D184,$E$1:E183) -> 0 | H184: =SUMIF($D$2:D184,D184,$E$2:E184) -> 0
A185: 183 | G185: =SUMIF($D$1:D184,D185,$E$1:E184) -> 0 | H185: =SUMIF($D$2:D185,D185,$E$2:E185) -> 0
A186: 184 | G186: =SUMIF($D$1:D185,D186,$E$1:E185) -> 0 | H186: =SUMIF($D$2:D186,D186,$E$2:E186) -> 0
A187: 185 | G187: =SUMIF($D$1:D186,D187,$E$1:E186) -> 0 | H187: =SUMIF($D$2:D187,D187,$E$2:E187) -> 0
A188: 186 | G188: =SUMIF($D$1:D187,D188,$E$1:E187) -> 0 | H188: =SUMIF($D$2:D188,D188,$E$2:E188) -> 0
A189: 187 | G189: =SUMIF($D$1:D188,D189,$E$1:E188) -> 0 | H189: =SUMIF($D$2:D189,D189,$E$2:E189) -> 0
A190: 188 | G190: =SUMIF($D$1:D189,D190,$E$1:E189) -> 0 | H190: =SUMIF($D$2:D190,D190,$E$2:E190) -> 0
A191: 189 | G191: =SUMIF($D$1:D190,D191,$E$1:E190) -> 0 | H191: =SUMIF($D$2:D191,D191,$E$2:E191) -> 0
A192: 190 | G192: =SUMIF($D$1:D191,D192,$E$1:E191) -> 0 | H192: =SUMIF($D$2:D192,D192,$E$2:E192) -> 0
A193: 191 | G193: =SUMIF($D$1:D192,D193,$E$1:E192) -> 0 | H193: =SUMIF($D$2:D193,D193,$E$2:E193) -> 0
A194: =ROW()-2 -> 192 | G194: =SUMIF($D$1:D193,D194,$E$1:E193) -> 0 | H194: =SUMIF($D$2:D194,D194,$E$2:E194) -> 0
A195: 193 | G195: =SUMIF($D$1:D194,D195,$E$1:E194) -> 0 | H195: =SUMIF($D$2:D195,D195,$E$2:E195) -> 0
A196: 194 | G196: =SUMIF($D$1:D195,D196,$E$1:E195) -> 0 | H196: =SUMIF($D$2:D196,D196,$E$2:E196) -> 0
A197: 195 | G197: =SUMIF($D$1:D196,D197,$E$1:E196) -> 0 | H197: =SUMIF($D$2:D197,D197,$E$2:E197) -> 0
A198: 196 | G198: =SUMIF($D$1:D197,D198,$E$1:E197) -> 0 | H198: =SUMIF($D$2:D198,D198,$E$2:E198) -> 0
A199: 197 | G199: =SUMIF($D$1:D198,D199,$E$1:E198) -> 0 | H199: =SUMIF($D$2:D199,D199,$E$2:E199) -> 0
A200: 198 | G200: =SUMIF($D$1:D199,D200,$E$1:E199) -> 0 | H200: =SUMIF($D$2:D200,D200,$E$2:E200) -> 0
... 766 more rows

Sheet شيت 2
B1: شركة دياجرام للمقاولات العامة والتجارة والتوريدات | I1: التاريخ | J1: =INDEX(data!$B:$B,MAX(ROW(data!$B:$B)*(data!$B:$B<>""))) -> 2023-06-15
B2: مشروع / مرابط الخيول | E2: مستخلص جارى رقم | H2: 12
B4: مقاول / هانى على جابر
E5: الاعمال
A6: البند | B6: بيان الاعمال | C6: الوحدة | D6: الفئة / جم | E6: السابق كمية | F6: السابق قيمة | G6: الحالى كمية | H6: نسبة الانجاز | I6: الحالى قيمة | J6: الاجمالى كمية | K6: الاجمالى قيمة | L6: ملاحظات
A7: 1 | B7: توريد مياة للموقع | C7: م.3 | D7: 55 | E7: =IFERROR(INDEX(data!G:G,MATCH(1,($B7=data!D:D)*($H$2=data!C:C),0)),0) -> 1175 | F7: =IFERROR(Table1[[#This Row],[السابق كمية]]*Table1[[#This Row],[الفئة / جم]],0) -> 64625 | G7: =IFERROR(INDEX(data!E:E,MATCH(1,($B7=data!D:D)*($H$2=data!C:C),0)),0) -> 80 | H7: =IFERROR(INDEX(data!F:F,MATCH(1,($B7=data!D:D)*($H$2=data!C:C),0)),0) -> 1 | I7: =IFERROR(Table1[[#This Row],[نسبة الانجاز]]*Table1[[#This Row],[الحالى كمية]]*Table1[[#This Row],[الفئة / جم]],0) -> 4400 | J7: =IFERROR(Table1[[#This Row],[السابق كمية]]+(Table1[[#This Row],[الحالى كمية]]*Table1[[#This Row],[نسبة الانجاز]]),0) -> 1255 | K7: =IFERROR(Table1[[#This Row],[الاجمالى كمية]]*Table1[[#This Row],[الفئة / جم]],0) -> 69025
A8: 2 | B8: توريد سن مقاس موحد | C8: م.3 | D8: 230 | E8: =IFERROR(INDEX(data!G:G,MATCH(1,($B8=data!D:D)*($H$2=data!C:C),0)),0) -> 0 | F8: =IFERROR(Table1[[#This Row],[السابق كمية]]*Table1[[#This Row],[الفئة / جم]],0) -> 0 | G8: =IFERROR(INDEX(data!E:E,MATCH(1,($B8=data!D:D)*($H$2=data!C:C),0)),0) -> 0 | H8: =IFERROR(INDEX(data!F:F,MATCH(1,($B8=data!D:D)*($H$2=data!C:C),0)),0) -> 0 | I8: =IFERROR(Table1[[#This Row],[نسبة الانجاز]]*Table1[[#This Row],[الحالى كمية]]*Table1[[#This Row],[الفئة / جم]],0) -> 0 | J8: =IFERROR(Table1[[#This Row],[السابق كمية]]+(Table1[[#This Row],[الحالى كمية]]*Table1[[#This Row],[نسبة الانجاز]]),0) -> 0 | K8: =IFERROR(Table1[[#This Row],[الاجمالى كمية]]*Table1[[#This Row],[الفئة / جم]],0) -> 0
A9: Total | F9: =SUBTOTAL(109,Table1[السابق قيمة]) -> 64625 | I9: =SUBTOTAL(109,Table1[الحالى قيمة]) -> 4400 | K9: =SUBTOTAL(109,Table1[الاجمالى قيمة]) -> 69025
G11: اجمالى الاعمال | L11: =SUM(Table1[[#Totals],[الاجمالى قيمة]]) -> 69025
G12: السابق من الاعمال | L12: =SUM(Table1[[#Totals],[السابق قيمة]]) -> 64625
G13: الحالــــى | L13: =L11-L12 -> 4400
G14: ضمان اعمال 5% | L14: .
G15: ضرائب منبع 3 % | L15: .
G16: صافى المستخلص | L16: =SUM(L13:L15) -> 4400
B18: محاسب الموقع | E18: مدير الموقع | H18: مدير القطاع | I18: cost control | K18: مدير المشروعات

Sheet كرم العرباوى (hidden)
A1: شركة/ دياجرام للمقاولات والتجارة والتوريدات | H1: المشروع/ مرابط الخيول
A2: إسم المقاول/كرم ربيع سالم | C2: وصف العمل/ توريد مياة للموقع | G2: مستخلص جاري | H2: 1 | I2: عن الفترة من 10/1 الي 10/1/ 2022
A3: بيــــــانات التعــــــــــــاقد | D3: كـمـيــة الاعمـــــــــــــــال | G3: الفئـــــة | H3: اجمــــــالي قيمة الاعمال | I3: نسبة الصرف | J3: اجمـــــالي قيمة البند | K3: ملاحظــــــات
A4: رقم البند | B4: بنود الاعمال | C4: الوحدة | D4: الكمية السابقة | E4: الكمية الحالية | F4: اجمالي الكميات | G4: جنيه | H4: جنيه
A5: 1 | B5: توريد مياة للموقع | C5: م.3 | E5: 20 | F5: =D5+E5 -> 20 | G5: 60 | H5: =F5*G5 -> 1200 | J5: =E5*G5 -> 1200 | K5: جارى
A6: اجمالي قيمة الاعمال | J6: =SUM(J5:J5) -> 1200
A8: محاسب الموقع / | D8: مدير المشروع / | G8: مدير القطاع/ | J8: مدير المشروعات/
